lending/lending_fUSD_20260328
["ID","MTS","AMOUNT","RATE_DAILY","PERIOD"]
[418962630,1774668632069,-340.14858335,0.00013111,2]
[418962636,1774668638078,-182.85141665,0.00013111,2]
[418962637,1774668638087,-176.55894765,0.00013212,2]
[418962640,1774668640196,-2311.10971837,0.00013212,2]
[418962641,1774668640255,-2512.33133398,0.00013212,2]
[418962642,1774668640265,-300.0,0.00013467,2]
[418962643,1774668640274,-1200.0,0.00013467,2]
[418962644,1774668640283,-300.0,0.00013467,2]
[418962645,1774668640293,-5000.0,0.00013468,2]
[418962646,1774668640302,-5040.31601557,0.00013468,2]
[418962647,1774668640311,-150.0,0.00013699,2]
[418962648,1774668640320,-150.0,0.00013699,2]
[418962649,1774668640329,-150.0,0.00013699,2]
[418962650,1774668640339,-150.0,0.00013699,2]
[418962651,1774668640348,-150.0,0.00013699,2]
[418962652,1774668640357,-150.0,0.00013699,2]
[418962653,1774668640366,-150.0,0.00013699,2]
[418962654,1774668640375,-1656.11,0.00013699,2]
[418962655,1774668640384,-2185.21,0.00013919,2]
[418962656,1774668640394,-150.0,0.00013973,2]
[418962657,1774668640403,-150.0,0.00013973,2]
[418962658,1774668640412,-150.0,0.00013973,2]
[418962659,1774668640422,-150.0,0.00013973,2]
[418962660,1774668640431,-150.0,0.00013973,2]
[418962661,1774668640440,-150.0,0.00013973,2]
[418962662,1774668640449,-150.0,0.00013973,2]
[418962663,1774668640458,-166.66,0.00014065,2]
[418962664,1774668640467,-209.49,0.00014162,2]
[418962665,1774668640476,-150.0,0.00014246,2]
[418962666,1774668640485,-150.0,0.00014247,2]
[418962667,1774668640494,-150.0,0.00014247,2]
[418962668,1774668640503,-150.0,0.00014247,2]
[418962669,1774668640512,-150.0,0.00014247,2]
[418962670,1774668640521,-150.0,0.00014247,2]
[418962671,1774668640530,-150.0,0.00014247,2]
[418962672,1774668640539,-299.99,0.00014384,2]
[418962673,1774668640548,-1656.11,0.00014384,2]
[418962674,1774668640557,-500.0,0.00014391,2]
[418962675,1774668640566,-500.0,0.00014391,2]
[418962676,1774668640575,-500.0,0.00014391,2]
[418962677,1774668640584,-500.0,0.00014391,2]
[418962678,1774668640593,-500.0,0.00014391,2]
[418962679,1774668640602,-500.0,0.00014391,2]
[418962680,1774668640611,-500.0,0.00014391,2]
[418962681,1774668640620,-500.0,0.00014391,2]
[418962682,1774668640629,-500.0,0.00014391,2]
[418962683,1774668640638,-500.0,0.00014391,2]
[418962684,1774668640647,-500.0,0.00014391,2]
[418962685,1774668640656,-500.0,0.00014391,2]
[418962686,1774668640665,-500.0,0.00014391,2]
[418962687,1774668640674,-500.0,0.00014391,2]
[418962688,1774668640686,-500.0,0.00014391,2]
[418962689,1774668640696,-500.0,0.00014391,2]
[418962690,1774668640706,-637.65229483,0.00014391,2]
[418962691,1774668640716,-983.0,0.00014395,2]
[418962692,1774668640726,-2807.0,0.000144,2]
[418962693,1774668640737,-2807.0,0.00014401,2]
[418962694,1774668640747,-161.0,0.00014401,2]
[418962695,1774668640756,-161.0,0.00014404,2]
[418962696,1774668640765,-811.0,0.00014404,2]
[418962697,1774668640774,-290.98832204,0.00014422,2]
[418962698,1774668640783,-5000.0,0.00014422,2]
[418962699,1774668640792,-307.44,0.000145,2]
[418962700,1774668640802,-600.0,0.000145,5]
[418962701,1774668640813,-880.56,0.00014593,2]
[418962702,1774668640822,-1300.0,0.000146,5]
[418962703,1774668640831,-388.35955312,0.00014626,2]
[418962704,1774668640840,-200.0,0.00014656,2]
[418962705,1774668640851,-47732.9853,0.0001466,2]
[418962706,1774668640860,-2500.0,0.0001466,2]
[418962707,1774668640869,-5000.0,0.0001466,2]
[418962708,1774668640879,-280.948,0.00014662,2]
[418962709,1774668640889,-4104.276,0.00014662,2]
[418962710,1774668640900,-983.0,0.00014669,2]
[418962711,1774668640910,-993.06814683,0.00014673,2]
[418962712,1774668640920,-218.12236458,0.00014673,2]
[418962713,1774668640929,-249.95578665,0.00014673,2]
[418962714,1774668640939,-1625.21570476,0.00014673,2]
[418962715,1774668640949,-296.0,0.00014674,2]
[418962716,1774668640958,-150.0,0.000147,2]
[418962717,1774668640967,-2000.0,0.000147,5]
[418962718,1774668640977,-2807.0,0.0001472,2]
[418962719,1774668640986,-161.0,0.00014721,2]
[418962720,1774668640995,-2807.0,0.00014724,2]
[418962721,1774668641004,-964.85,0.0001475,2]
[418962722,1774668641013,-964.85,0.0001475,2]
[418962723,1774668641023,-964.85,0.0001475,2]
[418962724,1774668641032,-964.85,0.0001475,2]
[418962725,1774668641041,-964.85,0.0001475,2]
[418962726,1774668641050,-195.78200293,0.0001475,2]
[418962727,1774668641059,-238.22795453,0.00014759,2]
[418962729,1774668641068,-278.3397915,0.00014759,2]
[418962730,1774668641077,-500.0,0.00014759,2]
[418962731,1774668641086,-500.0,0.00014759,2]
[418962732,1774668641095,-381.4536907,0.00014759,2]
[418962733,1774668641104,-500.0,0.00014759,2]
[418962734,1774668641113,-500.0,0.00014759,2]
[418962735,1774668641123,-350.0,0.00014759,2]
[418962736,1774668641132,-166.84214251,0.00014759,2]
[418962737,1774668641142,-340.8885099,0.00014759,2]
[418962738,1774668641150,-500.0,0.00014759,2]
[418962739,1774668641158,-500.0,0.00014759,2]
[418962740,1774668641168,-530.89489609,0.00014759,2]
[418962741,1774668641177,-2453.0,0.0001476,5]
[418962742,1774668641188,-151.0,0.0001476,2]
[418962743,1774668641205,-207.98764,0.0001476,2]
[418962744,1774668641226,-207.98764,0.0001476,2]
[418962745,1774668641236,-207.98764,0.0001476,2]
[418962746,1774668641245,-207.98764,0.0001476,2]
[418962747,1774668641255,-151.0,0.0001476,2]
[418962748,1774668641264,-151.0,0.0001476,2]
[418962749,1774668641273,-208.752654,0.0001476,2]
[418962750,1774668641282,-151.0,0.0001476,2]
[418962751,1774668641291,-151.0,0.0001476,2]
[418962752,1774668641300,-151.0,0.0001476,2]
[418962753,1774668641310,-151.0,0.0001476,2]
[418962755,1774668641319,-151.0,0.0001476,2]
[418962757,1774668641328,-151.0,0.0001476,2]
[418962759,1774668641337,-151.0,0.0001476,2]
[418962760,1774668641346,-151.0,0.0001476,2]
[418962762,1774668641355,-151.0,0.0001476,2]
[418962763,1774668641364,-286.166666,0.0001476,2]
[418962764,1774668641373,-151.0,0.0001476,2]
[418962765,1774668641383,-151.0,0.0001476,2]
[418962766,1774668641392,-151.0,0.0001476,2]
[418962767,1774668641401,-151.0,0.0001476,2]
[418962768,1774668641410,-151.0,0.0001476,2]
[418962769,1774668641420,-182.588536,0.0001476,2]
[418962770,1774668641429,-500.0,0.0001476,2]
[418962771,1774668641439,-500.0,0.0001476,2]
[418962772,1774668641448,-500.0,0.0001476,2]
[418962773,1774668641457,-500.0,0.0001476,2]
[418962774,1774668641467,-500.0,0.0001476,2]
[418962775,1774668641478,-500.0,0.0001476,2]
[418962776,1774668641488,-500.0,0.0001476,2]
[418962777,1774668641497,-500.0,0.0001476,2]
[418962778,1774668641507,-500.0,0.0001476,2]
[418962779,1774668641518,-500.0,0.0001476,2]
[418962780,1774668641527,-500.0,0.0001476,2]
[418962781,1774668641537,-1765.0,0.0001476,5]
[418962782,1774668641546,-151.0,0.0001476,2]
[418962783,1774668641556,-151.0,0.0001476,2]
[418962784,1774668641564,-151.0,0.0001476,2]
[418962785,1774668641574,-151.0,0.0001476,2]
[418962786,1774668641583,-283.872234,0.0001476,2]
[418962787,1774668641592,-151.0,0.0001476,2]
[418962788,1774668641601,-151.0,0.0001476,2]
[418962789,1774668641610,-1616799.64549293,0.0001476,2]
[418962790,1774668641624,-473.93335833,0.0001476,2]
[418962795,1774668643304,-1206.02050393,0.0001476,2]
[418962796,1774668643318,-1382.08232065,0.0001476,2]
[418962797,1774668643379,-478.51655685,0.0001476,2]
[418962809,1774668646429,-7535.72290876,0.0001476,2]
[418962837,1774669194501,-547.34,0.00012515,2]
[418962838,1774669194528,-250.0,0.00012763,2]
[418962839,1774669194555,-263.66,0.00013011,2]
[418962845,1774669643964,-1.7317,0.00013011,2]
[418962846,1774669643994,-4956.23058443,0.00013011,2]
[418962847,1774669650282,-84.08543114,0.00013011,2]
[418962848,1774669650311,-1662.15635631,0.00013011,2]
[418962849,1774669650339,-311.0,0.00013011,2]
[418962850,1774669650368,-523.0,0.00013111,2]
[418962851,1774669650396,-1119.94,0.00013229,2]
[418962852,1774669650424,-300.0,0.00013323,2]
[418962853,1774669650453,-799.6464251,0.00013323,2]
[418962854,1774669653467,-400.3535749,0.00013323,2]
[418962855,1774669653544,-7700.70185624,0.00013324,2]
[418962856,1774669659510,-1599.43814376,0.00013324,2]
[418962857,1774669693669,2000.0,0.00013282,2]
[418962862,1774669834628,-150.0,0.00013699,2]
[418962863,1774669834638,-150.0,0.00013699,2]
[418962864,1774669834647,-150.0,0.00013699,2]
[418962865,1774669834657,-150.0,0.00013699,2]
[418962866,1774669834666,-150.0,0.00013699,2]
[418962867,1774669834676,-150.0,0.00013699,2]
[418962868,1774669834684,-142.26350381,0.00013699,2]
[418962869,1774669834840,-7.73649619,0.00013699,2]
[418962870,1774669834850,-200.0,0.00013699,2]
[418962871,1774669834859,-324.0,0.00013699,2]
[418962872,1774669834868,-252.80804943,0.000137,5]
[418962873,1774669834880,-347.19195057,0.000137,5]
[418962874,1774669834889,-314.0825576,0.000138,5]
[418962875,1774669834906,-985.9174424,0.000138,5]
[418962876,1774669834916,-1200.0,0.00013825,2]
[418962877,1774669834925,-503.7465576,0.00013826,2]
[418962885,1774669838536,-645.0134424,0.00013826,2]
[418962886,1774669838546,-2000.0,0.000139,5]
[418962887,1774669838556,-188.31,0.0001396,2]
[418962888,1774669838565,-398.38,0.0001396,2]
[418962889,1774669838576,-1000.0,0.00013972,2]
[418962890,1774669838586,-150.0,0.00013972,2]
[418962891,1774669838596,-27299.95,0.00013973,2]
[418962892,1774669838606,-13550.40613993,0.00013973,2]
[418962929,1774669840695,-1026.60930443,0.00013973,2]
[418962930,1774669840711,-6514.75415118,0.00013973,2]
[418962931,1774669840723,-8614.67040446,0.00013973,2]
[418962932,1774669840732,-9999.99,0.00013973,2]
[418962933,1774669840742,-150.0,0.00013973,2]
[418962934,1774669840751,-150.0,0.00013973,2]
[418962935,1774669840761,-150.0,0.00013973,2]
[418962936,1774669840770,-150.0,0.00013973,2]
[418962937,1774669840779,-150.0,0.00013973,2]
[418962938,1774669840788,-150.0,0.00013973,2]
[418962939,1774669840797,-150.0,0.00013973,2]
[418962940,1774669840807,-5767.5625,0.00013984,2]
[418962941,1774669840816,-6766.507,0.00014084,2]
[418962942,1774669840825,-1379.70631145,0.000141,2]
[418962943,1774669840835,-2500.0,0.000141,2]
[418962944,1774669840845,-1166.3,0.00014117,2]
[418962945,1774669840854,-200.0,0.00014175,2]
[418962946,1774669840864,-3932.7123491,0.00014182,2]
[418962947,1774669840873,-33003.204,0.00014184,2]
[418962948,1774669840882,-611.40475815,0.000142,2]
[418962949,1774669840891,-249.95578665,0.000142,2]
[418962950,1774669840901,-13565.38066879,0.000142,2]
[418962951,1774669840911,-150.0,0.00014247,2]
[418962952,1774669840921,-150.0,0.00014247,2]
[418962953,1774669840930,-150.0,0.00014247,2]
[418962954,1774669840939,-150.0,0.00014247,2]
[418962955,1774669840948,-150.0,0.00014247,2]
[418962956,1774669840958,-150.0,0.00014247,2]
[418962957,1774669840967,-388.35955312,0.00014254,2]
[418962958,1774669840976,-500.67594574,0.00014273,2]
[418962959,1774669840986,-500.14866203,0.00014273,2]
[418962960,1774669840995,-503.13114295,0.00014273,2]
[418962961,1774669841004,-500.0,0.00014273,2]
[418962962,1774669841014,-504.15909483,0.00014273,2]
[418962963,1774669841023,-195.78200293,0.00014274,2]
[418962964,1774669841032,-350.0,0.00014279,2]
[418962965,1774669841041,-500.0,0.00014283,2]
[418962966,1774669841050,-500.0,0.00014283,2]
[418962967,1774669841060,-500.0,0.00014283,2]
[418962968,1774669841068,-500.0,0.00014283,2]
[418962969,1774669841078,-381.4536907,0.00014283,2]
[418962970,1774669841086,-278.3397915,0.00014283,2]
[418962971,1774669841095,-500.0,0.00014283,2]
[418962972,1774669841104,-500.0,0.00014283,2]
[418962973,1774669841113,-530.89489609,0.00014283,2]
[418962974,1774669841123,-238.22795453,0.00014283,2]
[418962975,1774669841131,-166.84214251,0.00014283,2]
[418962976,1774669841140,-350.0,0.00014283,2]
[418962977,1774669841149,-500.0,0.00014283,2]
[418962978,1774669841158,-406.79965891,0.00014283,2]
[418962979,1774669841167,-500.0,0.00014283,2]
[418962980,1774669841176,-500.0,0.00014283,2]
[418962981,1774669841185,-500.0,0.00014283,2]
[418962982,1774669841194,-500.0,0.00014283,2]
[418962983,1774669841203,-500.0,0.00014283,2]
[418962984,1774669841212,-500.0,0.00014283,2]
[418962985,1774669841221,-500.0,0.00014283,2]
[418962986,1774669841230,-500.0,0.00014283,2]
[418962987,1774669841239,-500.0,0.00014283,2]
[418962988,1774669841248,-500.0,0.00014283,2]
[418962989,1774669841257,-500.0,0.00014283,2]
[418962990,1774669841267,-500.0,0.00014283,2]
[418962991,1774669841276,-500.0,0.00014283,2]
[418962992,1774669841285,-1596247.7756,0.00014284,2]
[418962993,1774669841295,-1525.94,0.000143,2]
[418962994,1774669841305,-150.0,0.000143,2]
[418962995,1774669841315,-2799.39,0.000143,2]
[418962996,1774669841327,-2440.0,0.000143,2]
[418962997,1774669841337,-732.91,0.000143,2]
[418962998,1774669841346,-2256.0,0.00014331,5]
[418962999,1774669841355,-1804.0,0.00014331,5]
[418963000,1774669841366,-500.0,0.00014356,2]
[418963001,1774669841376,-800.0,0.00014356,2]
[418963002,1774669841386,-3932.71234902,0.00014373,2]
[418963003,1774669841395,-13565.38066876,0.00014389,2]
[418963004,1774669841407,-1166.3,0.00014391,2]
[418963005,1774669841417,-274.94588649,0.00014425,2]
[418963006,1774669841427,-195.53,0.00014431,2]
[418963007,1774669841436,-880.56,0.00014553,2]
[418963008,1774669841445,-500.0,0.00014559,2]
[418963009,1774669841454,-151.0,0.0001456,2]
[418963010,1774669841463,-151.0,0.0001456,2]
[418963011,1774669841472,-207.98764,0.0001456,2]
[418963012,1774669841481,-207.98764,0.0001456,2]
[418963013,1774669841490,-207.98764,0.0001456,2]
[418963014,1774669841499,-207.98764,0.0001456,2]
[418963015,1774669841508,-151.0,0.0001456,2]
[418963016,1774669841517,-151.0,0.0001456,2]
[418963017,1774669841526,-208.752654,0.0001456,2]
[418963018,1774669841536,-151.0,0.0001456,2]
[418963019,1774669841545,-151.0,0.0001456,2]
[418963020,1774669841554,-151.0,0.0001456,2]
[418963021,1774669841564,-151.0,0.0001456,2]
[418963022,1774669841573,-151.0,0.0001456,2]
[418963023,1774669841582,-151.0,0.0001456,2]
[418963024,1774669841591,-151.0,0.0001456,2]
[418963025,1774669841600,-151.0,0.0001456,2]
[418963026,1774669841609,-151.0,0.0001456,2]
[418963027,1774669841618,-151.0,0.0001456,2]
[418963028,1774669841627,-283.872234,0.0001456,2]
[418963029,1774669841636,-151.0,0.0001456,2]
[418963030,1774669841645,-151.0,0.0001456,2]
[418963031,1774669841654,-151.0,0.0001456,2]
[418963032,1774669841663,-21332.88435276,0.0001456,2]
[418963033,1774669841693,-511.0,0.0001456,2]
[418963039,1774669843933,-706.5404657,0.0001456,2]
[418963040,1774669844019,-131994.44167401,0.0001456,2]
[418963041,1774669844031,-70799.99999999,0.0001456,2]
[418963049,1774669846539,-187.06779564,0.0001456,2]
[418963050,1774669846582,-262.6,0.0001456,2]
[418963051,1774669846636,-2780.6087119,0.0001456,2]
[418963052,1774669846646,-3932.71234902,0.00014564,2]
[418963053,1774669846656,-500.0,0.00014573,2]
[418963054,1774669846666,-500.0,0.00014573,2]
[418963055,1774669846675,-2363.75019686,0.00014578,2]
[418963056,1774669846746,-11188.83341716,0.00014578,2]
[418963057,1774669846757,-12.79705474,0.00014578,2]
[418963058,1774669846767,-611.4047581,0.0001465,2]
[418963059,1774669846777,-1166.3,0.00014665,2]
[418963060,1774669846786,-2712.16187534,0.00014667,2]
[418963235,1774669883310,523.0,0.00013111,2]
[418963236,1774669949154,509.8897138,0.00013111,2]
[418963237,1774669950447,151.75902663,0.00013111,2]
[418963238,1774670217596,159.22,0.00011009,2]
[418963239,1774670244837,523.0,0.00013111,2]
[418963240,1774670314396,161.89,0.0001326,2]
[418963241,1774670378125,250.0,0.000105,5]
[418963244,1774670455361,166.66,0.0001237,2]
[418963245,1774670455561,166.66,0.0001263,2]
[418963246,1774670455748,166.66,0.00012891,2]
[418963247,1774670455952,166.66,0.00013151,2]
[418963248,1774670561467,-298.0,0.00013324,2]
[418963249,1774670561496,-370.0,0.00013324,2]
[418963250,1774670561523,-160.0,0.00013324,2]
[418963251,1774670586490,352.0,0.00013324,2]
[418963252,1774670592949,160.0,0.00013324,2]
[418963253,1774670605399,524.0,0.00013111,2]
[418963254,1774670618202,558.97,0.00011507,2]
[418963255,1774670646858,334.0,0.00013324,2]
[418963256,1774670652645,160.0,0.00013324,2]
[418963258,1774670705321,317.0,0.00013324,2]
[418963259,1774670707252,283.0,0.00013324,2]
[418963264,1774670711813,161.0,0.00013324,2]
[418963266,1774670767051,301.0,0.00013324,2]
[418963267,1774670773111,161.0,0.00013324,2]
[418963268,1774670824726,286.0,0.00013324,2]
[418963273,1774670862956,4008.9810264,0.00013323,2]
[418963278,1774671003603,100000.0,9.5e-05,3]
[418963279,1774671003631,18332.34136709,9.5e-05,3]
[418963352,1774671040761,-332.96,0.0001264,2]
[418963353,1774671040771,-524.66125,0.00013111,2]
[418963354,1774671040780,-269.0,0.00013111,3]
[418963355,1774671040789,-272.0,0.00013111,3]
[418963356,1774671040801,-636.06,0.00013138,2]
[418963357,1774671040812,-166.66,0.00013411,2]
[418963358,1774671040821,-150.0,0.00013579,7]
[418963359,1774671040830,-269.0,0.00013579,3]
[418963360,1774671040839,-272.0,0.00013579,3]
[418963361,1774671040849,-1200.0,0.00013597,2]
[418963362,1774671040858,-500.0,0.00013598,2]
[418963363,1774671040867,-500.0,0.00013598,2]
[418963364,1774671040877,-500.0,0.00013598,2]
[418963365,1774671040886,-500.0,0.00013598,2]
[418963366,1774671040895,-500.0,0.00013598,2]
[418963367,1774671040904,-500.0,0.00013598,2]
[418963368,1774671040913,-500.0,0.00013598,2]
[418963369,1774671040922,-500.0,0.00013598,2]
[418963370,1774671040931,-500.0,0.00013598,2]
[418963371,1774671040944,-500.0,0.00013598,2]
[418963372,1774671040954,-500.0,0.00013598,2]
[418963373,1774671040963,-500.0,0.00013598,2]
[418963374,1774671040972,-500.0,0.00013598,2]
[418963375,1774671040981,-500.0,0.00013598,2]
[418963376,1774671040990,-500.0,0.00013598,2]
[418963377,1774671040999,-500.0,0.00013598,2]
[418963378,1774671041009,-637.65229483,0.00013598,2]
[418963379,1774671041018,-2800.0,0.000136,4]
[418963380,1774671041028,-166.66,0.00013672,2]
[418963381,1774671041037,-244051.65809562,0.00013673,2]
[418963382,1774671041081,-264464.15564778,0.00013673,2]
[418963383,1774671041406,-860.16188374,0.00013673,2]
[418963384,1774671041418,-2365.275,0.00013673,2]
[418963385,1774671041430,-2511.0,0.00013673,2]
[418963386,1774671041442,-1844.09,0.00013673,2]
[418963387,1774671041455,-421.12915613,0.00013673,2]
[418963395,1774671043751,-2770.98055594,0.00013673,2]
[418963406,1774671046447,-37309.66758144,0.00013673,2]
[418963407,1774671046848,-21105.09571242,0.00013673,2]
[418963413,1774671731310,-1200.0,0.00013368,2]
[418963414,1774671731379,-300.0,0.00013368,2]
[418963415,1774671731403,-16954.07,0.00013369,2]
[418963416,1774671731429,-280.948,0.00013399,2]
[418963417,1774671731453,-3561.844,0.00013399,2]
[418963418,1774671731479,-1388.68932218,0.000135,2]
[418963419,1774671731503,-2500.0,0.00013573,2]
[418963420,1774671731527,-2752.89864435,0.00013573,2]
[418963421,1774671731552,-436.7176844,0.00013573,2]
[418963422,1774671731576,-500.0,0.00013672,2]
[418963423,1774671731601,-500.0,0.00013672,2]
[418963424,1774671731626,-167.01758349,0.00013672,2]
[418963425,1774671731650,-500.0,0.00013672,2]
[418963426,1774671731679,-500.0,0.00013672,2]
[418963427,1774671731707,-434.08885099,0.00013672,2]
[418963428,1774671731733,-194.83785405,0.00013672,2]
[418963429,1774671731758,-500.0,0.00013672,2]
[418963430,1774671731782,-571.62642726,0.00013672,2]
[418963431,1774671731805,-500.0,0.00013672,2]
[418963432,1774671731830,-500.0,0.00013672,2]
[418963433,1774671731855,-214852.26486693,0.00013673,2]
[418963434,1774671731882,-202633.70998348,0.00013673,2]
[418963441,1774671855374,151.76215787,6.719e-05,2]
[418963442,1774671855402,142.03784213,6.719e-05,2]
[418963443,1774671855566,180.19997,7.072e-05,2]
[418963444,1774671855597,113.60003,7.072e-05,2]
[418963445,1774671855759,293.8,7.426e-05,2]
[418963446,1774671855948,293.8,7.78e-05,2]
[418963447,1774671856151,293.8,8.133e-05,2]
[418963448,1774671856377,293.8,8.487e-05,2]
[418963450,1774671905032,256.0,8.487e-05,3]
[418963451,1774671905259,256.0,9.198e-05,3]
[418963452,1774671911692,258.0,8.487e-05,3]
[418963453,1774671912232,258.0,9.198e-05,3]
[418963454,1774671950049,740.0,8.173e-05,2]
[418963455,1774671964850,233.0,8.487e-05,3]
[418963456,1774671965058,233.0,9.198e-05,3]
[418963457,1774672012740,2200.0,7.982e-05,2]
[418963458,1774672024808,209.0,8.487e-05,3]
[418963459,1774672025063,209.0,9.198e-05,3]
[418963460,1774672086946,188.0,8.487e-05,3]
[418963461,1774672087184,188.0,9.198e-05,3]
[418963463,1774672145058,170.0,8.487e-05,3]
[418963464,1774672145298,170.0,9.198e-05,3]
[418963469,1774672205664,230.0,8.487e-05,3]
[418963470,1774672206200,230.0,9.198e-05,3]
[418963471,1774672207535,153.0,8.487e-05,3]
[418963472,1774672207780,153.0,9.198e-05,3]
[418963475,1774672231574,-1817.97,8.728e-05,2]
[418963476,1774672231583,-293.8,8.841e-05,2]
[418963477,1774672231592,-2100.0,9.077e-05,2]
[418963478,1774672231601,-60.09027859,9.194e-05,2]
[418963479,1774672231613,-233.70972141,9.194e-05,2]
[418963480,1774672231622,-853.45,9.384e-05,2]
[418963481,1774672231631,-293.8,9.548e-05,2]
[418963482,1774672231640,-1200.0,9.6e-05,2]
[418963483,1774672231649,-300.0,9.6e-05,2]
[418963484,1774672231659,-1200.0,9.6e-05,2]
[418963485,1774672231668,-300.0,9.6e-05,2]
[418963486,1774672231677,-210.9718797,9.601e-05,2]
[418963487,1774672231737,-4789.0281203,9.601e-05,2]
[418963488,1774672231746,-290.98832204,9.601e-05,2]
[418963489,1774672231755,-5000.0,9.725e-05,2]
[418963490,1774672231764,-250.0,9.725e-05,2]
[418963491,1774672231774,-1181.72,9.806e-05,2]
[418963492,1774672231783,-293.8,9.901e-05,2]
[418963493,1774672231792,-230.0,9.909e-05,3]
[418963494,1774672231802,-153.0,9.909e-05,3]
[418963495,1774672231813,-580.83534134,0.0001025,2]
[418963496,1774672231822,-293.8,0.00010255,2]
[418963497,1774672231832,-150.0,0.000104,2]
[418963498,1774672231842,-4940.0,0.000105,5]
[418963499,1774672231852,-210.0,0.0001056,2]
[418963500,1774672231862,-1680.0,0.0001056,2]
[418963501,1774672231871,-293.8,0.00010609,2]
[418963502,1774672231880,-230.0,0.00010621,3]
[418963503,1774672231891,-153.0,0.00010621,3]
[418963504,1774672231900,-293.8,0.00010962,2]
[418963505,1774672231910,-500.0,0.00011244,2]
[418963507,1774672231919,-293.8,0.00011316,2]
[418963508,1774672231928,-230.0,0.00011332,3]
[418963510,1774672231937,-153.0,0.00011332,3]
[418963512,1774672231946,-151.0,0.00011503,2]
[418963513,1774672231955,-1732.0,0.00011616,2]
[418963514,1774672231964,-293.8,0.0001167,2]
[418963515,1774672231973,-1239.0,0.0001168,2]
[418963516,1774672231983,-150.0,0.0001168,2]
[418963517,1774672231992,-1075.68078221,0.00011769,2]
[418963518,1774672232001,-293.8,0.00012023,2]
[418963519,1774672232010,-230.0,0.00012043,3]
[418963520,1774672232019,-153.0,0.00012043,3]
[418963521,1774672232030,-293.8,0.00012377,2]
[418963522,1774672232040,-293.8,0.0001273,2]
[418963523,1774672232050,-255.0,0.00012754,2]
[418963524,1774672232060,-230.0,0.00012754,3]
[418963525,1774672232070,-153.0,0.00012754,3]
[418963526,1774672232081,-293.8,0.00013084,2]
[418963527,1774672232090,-555.0,0.00013111,2]
[418963528,1774672232099,-550.0,0.00013111,2]
[418963529,1774672232108,-1239.0,0.0001314,2]
[418963530,1774672232118,-500.0,0.00013152,2]
[418963531,1774672232127,-500.0,0.00013152,2]
[418963532,1774672232137,-500.0,0.00013152,2]
[418963533,1774672232146,-343.21033473,0.00013152,2]
[418963534,1774672232163,-156.78966527,0.00013152,2]
[418963535,1774672232173,-500.0,0.00013152,2]
[418963536,1774672232183,-500.0,0.00013152,2]
[418963537,1774672232193,-500.0,0.00013152,2]
[418963538,1774672232203,-296.0,0.00013403,2]
[418963539,1774672232212,-492.12183473,0.00013426,2]
[418963541,1774672237618,-319.00184782,0.00013426,2]
[418963543,1774672237678,-63.59631745,0.00013426,2]
[418963544,1774672237687,-293.8,0.00013438,2]
[418963545,1774672237696,-129.71871225,0.00013465,3]
[418963546,1774672237740,-100.28128775,0.00013465,3]
[418963547,1774672237749,-153.0,0.00013465,3]
[418963548,1774672237759,-1000.0,0.00013472,2]
[418963549,1774672237768,-166.6371911,0.00013473,2]
[418963550,1774672237778,-10927.26231178,0.00013473,2]